[Event "Early-Titled-Tuesday-Blitz-September-05-2023"]
[Site "Chess.com"]
[Date "2023.09.05"]
[Round "2"]
[White "MAGMAchess02"]
[Black "WildTricks"]
[Result "0-1"]
[WhiteElo "2406"]
[BlackElo "2634"]
[TimeControl "180+1"]
[EndTime "8:18:03 PDT"]
[Termination "WildTricks won by resignation"]

1. Nf3 {[%clk 0:03:00.9]} 1... b6 {[%clk 0:02:58.7]} 2. c4 {[%clk 0:03:00.6]}
2... Bb7 {[%clk 0:02:58.9]} 3. g3 {[%clk 0:02:57.1]} 3... Nf6 {[%clk 0:02:56.5]}
4. Bg2 {[%clk 0:02:57.4]} 4... c5 {[%clk 0:02:55]} 5. O-O {[%clk 0:02:57.5]}
5... g6 {[%clk 0:02:55.6]} 6. b3 {[%clk 0:02:57.5]} 6... Bg7 {[%clk 0:02:55.1]}
7. Bb2 {[%clk 0:02:58.1]} 7... O-O {[%clk 0:02:55.4]} 8. Nc3 {[%clk 0:02:47.8]}
8... d5 {[%clk 0:02:54.2]} 9. cxd5 {[%clk 0:02:46.8]} 9... Nxd5 {[%clk 0:02:52]}
10. Qc2 {[%clk 0:02:43.2]} 10... Nc6 {[%clk 0:02:47.6]} 11. Nxd5 {[%clk
0:02:42.9]} 11... Qxd5 {[%clk 0:02:47.6]} 12. Bxg7 {[%clk 0:02:40.4]} 12... Kxg7
{[%clk 0:02:48.5]} 13. d3 {[%clk 0:02:34.1]} 13... Rac8 {[%clk 0:02:42.8]} 14.
Qb2+ {[%clk 0:02:32.6]} 14... Kg8 {[%clk 0:02:41.7]} 15. Nd2 {[%clk 0:02:30.7]}
15... Qd7 {[%clk 0:02:39.6]} 16. Nc4 {[%clk 0:02:28]} 16... f6 {[%clk
0:02:32.3]} 17. a3 {[%clk 0:02:14.2]} 17... Rfd8 {[%clk 0:02:27.3]} 18. b4
{[%clk 0:02:12.2]} 18... Nd4 {[%clk 0:02:15.5]} 19. Rfc1 {[%clk 0:01:42.8]}
19... Bxg2 {[%clk 0:02:08.6]} 20. Kxg2 {[%clk 0:01:42.6]} 20... cxb4 {[%clk
0:02:04.4]} 21. axb4 {[%clk 0:01:40.3]} 21... Rc7 {[%clk 0:01:53.6]} 22. Ne3
{[%clk 0:01:28]} 22... Rdc8 {[%clk 0:01:50.6]} 23. Rxc7 {[%clk 0:01:18]} 23...
Rxc7 {[%clk 0:01:51.5]} 24. Qa2+ {[%clk 0:00:44.3]} 24... Kg7 {[%clk 0:01:46.9]}
25. Qd5 {[%clk 0:00:34.9]} 25... Nxe2 {[%clk 0:01:37.6]} 26. Re1 {[%clk
0:00:20.6]} 26... Nc3 {[%clk 0:01:31.8]} 27. Qxd7 {[%clk 0:00:15.6]} 27... Rxd7
{[%clk 0:01:32.7]} 28. Nc4 {[%clk 0:00:16]} 28... Kf7 {[%clk 0:01:29.2]} 29. Nb2
{[%clk 0:00:14.4]} 29... Nd5 {[%clk 0:01:24.6]} 30. Re4 {[%clk 0:00:14.3]} 30...
e5 {[%clk 0:01:18.6]} 31. Rc4 {[%clk 0:00:14.3]} 31... Rc7 {[%clk 0:01:16.5]}
32. b5 {[%clk 0:00:12]} 32... Ke6 {[%clk 0:01:11.3]} 33. Kf3 {[%clk 0:00:12.1]}
33... Kd6 {[%clk 0:00:52.5]} 34. Nd1 {[%clk 0:00:08.8]} 34... f5 {[%clk
0:00:44.2]} 35. Ke2 {[%clk 0:00:07.1]} 35... Rc5 {[%clk 0:00:38.5]} 36. Ra4
{[%clk 0:00:05.4]} 36... Rc2+ {[%clk 0:00:29.9]} 37. Ke1 {[%clk 0:00:04.6]}
37... Rc7 {[%clk 0:00:24.4]} 38. Ne3 {[%clk 0:00:04.9]} 38... h6 {[%clk
0:00:13.6]} 39. Kd2 {[%clk 0:00:04.4]} 39... Ke6 {[%clk 0:00:09.3]} 40. Nc4
{[%clk 0:00:04.3]} 40... Nf6 {[%clk 0:00:09]} 41. Ra1 {[%clk 0:00:03.9]} 41...
Ng4 {[%clk 0:00:09.1]} 42. Re1 {[%clk 0:00:03.5]} 42... e4 {[%clk 0:00:06.6]}
43. f3 {[%clk 0:00:03.3]} 43... Nxh2 {[%clk 0:00:06.4]} 44. fxe4 {[%clk
0:00:03.5]} 44... Nf3+ {[%clk 0:00:07]} 45. Ke2 {[%clk 0:00:03.6]} 45... Nxe1
{[%clk 0:00:07.9]} 46. Kxe1 {[%clk 0:00:04.5]} 46... fxe4 {[%clk 0:00:07.6]} 47.
Kd2 {[%clk 0:00:05.2]} 47... exd3 {[%clk 0:00:07.6]} 48. Kxd3 {[%clk 0:00:06.1]}
48... Rc5 {[%clk 0:00:07.6]} 49. Ke4 {[%clk 0:00:06.8]} 49... Rxc4+ {[%clk
0:00:07.6]} 50. Kd3 {[%clk 0:00:06.5]} 50... Rb4 {[%clk 0:00:08.5]} 0-1

[Event "Early-Titled-Tuesday-Blitz-September-05-2023"]
[Site "Chess.com"]
[Date "2023.09.05"]
[Round "2"]
[White "esrosenberg"]
[Black "GianmarcoVaR"]
[Result "0-1"]
[WhiteElo "2399"]
[BlackElo "2648"]
[TimeControl "180+1"]
[EndTime "8:18:06 PDT"]
[Termination "GianmarcoVaR won by checkmate"]

1. d4 {[%clk 0:02:59]} 1... Nf6 {[%clk 0:02:51.6]} 2. Nf3 {[%clk 0:02:58.7]}
2... e6 {[%clk 0:02:47]} 3. g3 {[%clk 0:02:56.7]} 3... b5 {[%clk 0:02:33.7]} 4.
Bg2 {[%clk 0:02:55.2]} 4... Bb7 {[%clk 0:02:32.9]} 5. O-O {[%clk 0:02:52.7]}
5... c5 {[%clk 0:02:31.1]} 6. Na3 {[%clk 0:02:52.7]} 6... a6 {[%clk 0:02:24.9]}
7. c4 {[%clk 0:02:51.6]} 7... cxd4 {[%clk 0:02:17]} 8. cxb5 {[%clk 0:02:48.8]}
8... Bxa3 {[%clk 0:02:17.2]} 9. bxa3 {[%clk 0:02:48.7]} 9... axb5 {[%clk
0:02:16.9]} 10. Nxd4 {[%clk 0:02:41.3]} 10... Bxg2 {[%clk 0:02:15.8]} 11. Kxg2
{[%clk 0:02:42]} 11... O-O {[%clk 0:02:03.3]} 12. Rb1 {[%clk 0:02:38.2]} 12...
d5 {[%clk 0:01:57.2]} 13. Rxb5 {[%clk 0:02:34.7]} 13... Ne4 {[%clk 0:01:52]} 14.
Qc2 {[%clk 0:02:28.6]} 14... Nd6 {[%clk 0:01:51.2]} 15. Rb3 {[%clk 0:02:23.7]}
15... Nd7 {[%clk 0:01:37.5]} 16. h4 {[%clk 0:02:01.6]} 16... h6 {[%clk
0:01:24.4]} 17. Rd1 {[%clk 0:01:54.2]} 17... Nf6 {[%clk 0:00:48]} 18. Rf3 {[%clk
0:01:39]} 18... Nfe4 {[%clk 0:00:39.9]} 19. Nb3 {[%clk 0:01:26.8]} 19... Nc4
{[%clk 0:00:34]} 20. Nd4 {[%clk 0:01:17.6]} 20... Qe7 {[%clk 0:00:21.5]} 21. Nc6
{[%clk 0:00:55.6]} 21... Qc5 {[%clk 0:00:19.8]} 22. Nb4 {[%clk 0:00:54.9]} 22...
Rfc8 {[%clk 0:00:18.7]} 23. Qb1 {[%clk 0:00:42.3]} 23... Ne5 {[%clk 0:00:16.2]}
24. Rf4 {[%clk 0:00:40.8]} 24... Nc3 {[%clk 0:00:15.5]} 25. Qc2 {[%clk
0:00:39.6]} 25... Nxd1 {[%clk 0:00:11.3]} 26. Qxd1 {[%clk 0:00:39.2]} 26... Qxc1
{[%clk 0:00:10.9]} 27. Qd4 {[%clk 0:00:39.6]} 27... Qc3 {[%clk 0:00:10.4]} 28.
Qb6 {[%clk 0:00:39.4]} 28... Qc7 {[%clk 0:00:10]} 29. Qb5 {[%clk 0:00:38.5]}
29... Rcb8 {[%clk 0:00:07.9]} 30. Na6 {[%clk 0:00:34]} 30... Rxb5 {[%clk
0:00:05.1]} 31. Nxc7 {[%clk 0:00:34.2]} 31... Rba5 {[%clk 0:00:05.1]} 32. Nxa8
{[%clk 0:00:34.5]} 32... Rxa8 {[%clk 0:00:05.9]} 33. a4 {[%clk 0:00:33.8]} 33...
Nc4 {[%clk 0:00:05]} 34. e4 {[%clk 0:00:32.9]} 34... Rxa4 {[%clk 0:00:04.7]} 35.
exd5 {[%clk 0:00:33.1]} 35... exd5 {[%clk 0:00:05.2]} 36. Kf3 {[%clk 0:00:33.1]}
36... Rxa2 {[%clk 0:00:05.2]} 37. Rd4 {[%clk 0:00:32.7]} 37... Rd2 {[%clk
0:00:05.9]} 38. Rxd2 {[%clk 0:00:30.8]} 38... Nxd2+ {[%clk 0:00:05.9]} 39. Ke2
{[%clk 0:00:31.1]} 39... Ne4 {[%clk 0:00:06.3]} 40. Ke3 {[%clk 0:00:30.6]} 40...
Kf8 {[%clk 0:00:05.9]} 41. g4 {[%clk 0:00:29.8]} 41... Ke7 {[%clk 0:00:05.8]}
42. f3 {[%clk 0:00:30.6]} 42... Nc5 {[%clk 0:00:05.1]} 43. Kd4 {[%clk
0:00:31.3]} 43... Kd6 {[%clk 0:00:05.8]} 44. f4 {[%clk 0:00:30.8]} 44... Ne6+
{[%clk 0:00:05.7]} 45. Ke3 {[%clk 0:00:30.2]} 45... g5 {[%clk 0:00:05.8]} 46.
hxg5 {[%clk 0:00:30.2]} 46... hxg5 {[%clk 0:00:06.5]} 47. fxg5 {[%clk
0:00:28.6]} 47... Nxg5 {[%clk 0:00:07.4]} 48. Kf4 {[%clk 0:00:28.9]} 48... f6
{[%clk 0:00:07.6]} 49. Kf5 {[%clk 0:00:29.6]} 49... Ne4 {[%clk 0:00:07.6]} 50.
Kf4 {[%clk 0:00:27.5]} 50... Ke6 {[%clk 0:00:07.6]} 51. Kf3 {[%clk 0:00:26.4]}
51... Ke5 {[%clk 0:00:07.9]} 52. Ke3 {[%clk 0:00:27.1]} 52... Nc5 {[%clk
0:00:07.4]} 53. Kf3 {[%clk 0:00:27]} 53... d4 {[%clk 0:00:07.7]} 54. Ke2 {[%clk
0:00:26.7]} 54... Ke4 {[%clk 0:00:07.6]} 55. Kd2 {[%clk 0:00:26.4]} 55... d3
{[%clk 0:00:07.7]} 56. Kc3 {[%clk 0:00:26.2]} 56... Ke3 {[%clk 0:00:07.8]} 57.
Kc4 {[%clk 0:00:26.6]} 57... d2 {[%clk 0:00:07.9]} 58. Kxc5 {[%clk 0:00:27.3]}
58... d1=Q {[%clk 0:00:08.4]} 59. Kc4 {[%clk 0:00:27]} 59... Qd4+ {[%clk
0:00:08.4]} 60. Kb5 {[%clk 0:00:26.9]} 60... Qc3 {[%clk 0:00:08.7]} 61. Ka4
{[%clk 0:00:26.6]} 61... Qb2 {[%clk 0:00:08.6]} 62. Ka5 {[%clk 0:00:26.4]} 62...
Kd4 {[%clk 0:00:09.2]} 63. g5 {[%clk 0:00:26.1]} 63... Kc5 {[%clk 0:00:09.3]}
64. gxf6 {[%clk 0:00:23.2]} 64... Qb5# {[%clk 0:00:10.2]} 0-1

[Event "Early-Titled-Tuesday-Blitz-September-05-2023"]
[Site "Chess.com"]
[Date "2023.09.05"]
[Round "2"]
[White "Gauravthegm"]
[Black "Rurep26"]
[Result "0-1"]
[WhiteElo "2432"]
[BlackElo "2810"]
[TimeControl "180+1"]
[EndTime "8:18:09 PDT"]
[Termination "Rurep26 won by resignation"]

1. d4 {[%clk 0:03:00.9]} 1... e6 {[%clk 0:02:59.6]} 2. c4 {[%clk 0:02:59.3]}
2... Nf6 {[%clk 0:02:59.8]} 3. Nf3 {[%clk 0:02:54.2]} 3... b6 {[%clk 0:02:59.4]}
4. g3 {[%clk 0:02:53.9]} 4... Ba6 {[%clk 0:02:59.5]} 5. Qc2 {[%clk 0:02:52.7]}
5... Bb7 {[%clk 0:02:58.7]} 6. Bg2 {[%clk 0:02:52.6]} 6... Bb4+ {[%clk
0:02:58.3]} 7. Bd2 {[%clk 0:02:51.9]} 7... Be4 {[%clk 0:02:58.1]} 8. Qc1 {[%clk
0:02:51.4]} 8... a5 {[%clk 0:02:58.3]} 9. O-O {[%clk 0:02:50.9]} 9... O-O {[%clk
0:02:57.9]} 10. a3 {[%clk 0:02:50.9]} 10... Bxd2 {[%clk 0:02:52.3]} 11. Nbxd2
{[%clk 0:02:51.8]} 11... Bb7 {[%clk 0:02:52.6]} 12. b4 {[%clk 0:02:49.8]} 12...
d6 {[%clk 0:02:50.2]} 13. Qc2 {[%clk 0:02:44.6]} 13... Qe7 {[%clk 0:02:46.9]}
14. c5 {[%clk 0:02:39.1]} 14... bxc5 {[%clk 0:02:43.6]} 15. bxc5 {[%clk
0:02:35.8]} 15... dxc5 {[%clk 0:02:38.6]} 16. dxc5 {[%clk 0:02:31.7]} 16... Bc6
{[%clk 0:02:38.6]} 17. Ne5 {[%clk 0:02:22.2]} 17... Bxg2 {[%clk 0:02:36.6]} 18.
Kxg2 {[%clk 0:02:23.1]} 18... Nbd7 {[%clk 0:02:36.7]} 19. Nd3 {[%clk 0:02:16.9]}
19... e5 {[%clk 0:02:30.6]} 20. e4 {[%clk 0:02:16.5]} 20... Nb8 {[%clk
0:02:23.4]} 21. c6 {[%clk 0:02:06.9]} 21... Ra6 {[%clk 0:02:20.6]} 22. Qc4
{[%clk 0:01:49.2]} 22... Rxc6 {[%clk 0:02:17.4]} 23. Qb5 {[%clk 0:01:49.1]}
23... Rb6 {[%clk 0:02:06.5]} 24. Qxe5 {[%clk 0:01:38.8]} 24... Qd8 {[%clk
0:02:06.1]} 25. Nc4 {[%clk 0:01:19.6]} 25... Qxd3 {[%clk 0:01:57.7]} 26. Nxb6
{[%clk 0:01:19.8]} 26... cxb6 {[%clk 0:01:58.6]} 27. Rfd1 {[%clk 0:01:14.3]}
27... Qxe4+ {[%clk 0:01:54.4]} 28. Qxe4 {[%clk 0:01:14.1]} 28... Nxe4 {[%clk
0:01:55.3]} 29. f3 {[%clk 0:01:12.6]} 29... Nc5 {[%clk 0:01:41.8]} 30. Rab1
{[%clk 0:01:08.8]} 30... Nbd7 {[%clk 0:01:39.3]} 31. Re1 {[%clk 0:01:09]} 31...
a4 {[%clk 0:01:33.5]} 32. Rb5 {[%clk 0:01:05.2]} 32... Nb3 {[%clk 0:01:32.6]}
33. Re7 {[%clk 0:01:01.9]} 33... Nf6 {[%clk 0:01:32.7]} 34. Ra7 {[%clk
0:00:55.8]} 34... Nc5 {[%clk 0:01:14.5]} 35. Rxb6 {[%clk 0:00:55.1]} 35... Rd8
{[%clk 0:01:14.9]} 36. Rc6 {[%clk 0:00:49.4]} 36... Ne6 {[%clk 0:01:03.3]} 37.
Rxa4 {[%clk 0:00:44.2]} 37... Rd2+ {[%clk 0:01:03.6]} 38. Kg1 {[%clk 0:00:40.6]}
38... h5 {[%clk 0:01:04.5]} 39. Rac4 {[%clk 0:00:34.1]} 39... Nd4 {[%clk
0:01:03.3]} 40. Rc8+ {[%clk 0:00:26.5]} 40... Kh7 {[%clk 0:01:03.1]} 41. Kf1
{[%clk 0:00:19.6]} 41... Nxf3 {[%clk 0:01:00.9]} 42. Rc2 {[%clk 0:00:17.9]}
42... Nxh2+ {[%clk 0:00:55.9]} 43. Kg1 {[%clk 0:00:18.4]} 43... Nf3+ {[%clk
0:00:56.8]} 44. Kf1 {[%clk 0:00:18.9]} 44... Rd5 {[%clk 0:00:48.7]} 45. R8c5
{[%clk 0:00:16.7]} 45... Rd7 {[%clk 0:00:48.3]} 46. Kf2 {[%clk 0:00:15.2]} 46...
Nd4 {[%clk 0:00:45.5]} 47. R2c4 {[%clk 0:00:12.1]} 47... Ne4+ {[%clk 0:00:45.5]}
48. Ke3 {[%clk 0:00:12.6]} 48... Nxc5 {[%clk 0:00:45.8]} 49. Rxc5 {[%clk
0:00:12.5]} 49... g6 {[%clk 0:00:42.6]} 50. a4 {[%clk 0:00:12.6]} 50... Nf5+
{[%clk 0:00:42]} 51. Kf4 {[%clk 0:00:12.5]} 51... Rd4+ {[%clk 0:00:42.3]} 52.
Ke5 {[%clk 0:00:12.8]} 52... Rxa4 {[%clk 0:00:35.9]} 53. Kf6 {[%clk 0:00:13.2]}
53... Nxg3 {[%clk 0:00:36.2]} 54. Kxf7 {[%clk 0:00:13.2]} 54... Rf4+ {[%clk
0:00:36.7]} 55. Ke6 {[%clk 0:00:13.3]} 55... h4 {[%clk 0:00:36.9]} 56. Ke5
{[%clk 0:00:13.3]} 56... Rf5+ {[%clk 0:00:36.7]} 57. Kd4 {[%clk 0:00:14.2]}
57... Rxc5 {[%clk 0:00:37.6]} 58. Kxc5 {[%clk 0:00:15.1]} 58... h3 {[%clk
0:00:37.9]} 0-1

[Event "Early-Titled-Tuesday-Blitz-September-05-2023"]
[Site "Chess.com"]
[Date "2023.09.05"]
[Round "2"]
[White "HansOnTwitch"]
[Black "hurricane7791"]
[Result "1/2-1/2"]
[WhiteElo "3055"]
[BlackElo "2682"]
[TimeControl "180+1"]
[EndTime "8:18:10 PDT"]
[Termination "Game drawn by repetition"]

1. c4 {[%clk 0:02:58.4]} 1... c5 {[%clk 0:02:58.9]} 2. Nf3 {[%clk 0:02:51.4]}
2... Nc6 {[%clk 0:02:56.7]} 3. Nc3 {[%clk 0:02:51.2]} 3... Nf6 {[%clk
0:02:54.3]} 4. g3 {[%clk 0:02:51.4]} 4... e6 {[%clk 0:02:53.9]} 5. Bg2 {[%clk
0:02:50.3]} 5... d5 {[%clk 0:02:54.4]} 6. cxd5 {[%clk 0:02:44.5]} 6... exd5
{[%clk 0:02:54.7]} 7. d4 {[%clk 0:02:44.5]} 7... cxd4 {[%clk 0:02:55.6]} 8. Nxd4
{[%clk 0:02:44.9]} 8... Bc5 {[%clk 0:02:56.2]} 9. Be3 {[%clk 0:02:41.9]} 9...
Bb6 {[%clk 0:02:37.6]} 10. Na4 {[%clk 0:02:39.6]} 10... Ba5+ {[%clk 0:02:31.4]}
11. Nc3 {[%clk 0:02:39.2]} 11... Bb6 {[%clk 0:02:28.3]} 12. O-O {[%clk
0:02:38.6]} 12... O-O {[%clk 0:02:28.9]} 13. Na4 {[%clk 0:02:37.4]} 13... Ng4
{[%clk 0:02:21.5]} 14. Nxc6 {[%clk 0:02:10.8]} 14... bxc6 {[%clk 0:02:10.8]} 15.
Bd4 {[%clk 0:02:10.4]} 15... Re8 {[%clk 0:02:06.5]} 16. e3 {[%clk 0:02:04.8]}
16... Ba6 {[%clk 0:01:50.8]} 17. Re1 {[%clk 0:02:02.5]} 17... Ne5 {[%clk
0:01:51.5]} 18. Bxe5 {[%clk 0:01:56.5]} 18... Rxe5 {[%clk 0:01:52.4]} 19. Rc1
{[%clk 0:01:56.2]} 19... Rc8 {[%clk 0:01:52.4]} 20. Nc5 {[%clk 0:01:50.9]} 20...
Bc4 {[%clk 0:01:48.7]} 21. Nd3 {[%clk 0:01:32.5]} 21... Bxd3 {[%clk 0:01:33.9]}
22. Qxd3 {[%clk 0:01:32.2]} 22... c5 {[%clk 0:01:34.4]} 23. b3 {[%clk 0:01:12]}
23... c4 {[%clk 0:01:21.3]} 24. Qd2 {[%clk 0:00:47]} 24... cxb3 {[%clk
0:01:20.9]} 25. axb3 {[%clk 0:00:39.5]} 25... d4 {[%clk 0:01:12.8]} 26. Rxc8
{[%clk 0:00:18.9]} 26... Qxc8 {[%clk 0:01:11.5]} 27. Rc1 {[%clk 0:00:15.4]}
27... Rc5 {[%clk 0:01:11.5]} 28. Rxc5 {[%clk 0:00:04.3]} 28... Qxc5 {[%clk
0:01:12.4]} 29. e4 {[%clk 0:00:04.1]} 29... g6 {[%clk 0:01:00.4]} 30. Bf1 {[%clk
0:00:03.9]} 30... Qc3 {[%clk 0:00:55.8]} 31. Qd1 {[%clk 0:00:03.4]} 31... Ba5
{[%clk 0:00:31.8]} 32. Kg2 {[%clk 0:00:03]} 32... Kg7 {[%clk 0:00:29]} 33. Bc4
{[%clk 0:00:02.8]} 33... Bb6 {[%clk 0:00:22.5]} 34. Qg4 {[%clk 0:00:02.5]} 34...
d3 {[%clk 0:00:19.5]} 35. Qf3 {[%clk 0:00:02.7]} 35... Qf6 {[%clk 0:00:20]} 36.
Qxf6+ {[%clk 0:00:02.1]} 36... Kxf6 {[%clk 0:00:20.9]} 37. Bxd3 {[%clk
0:00:02.5]} 37... Ke7 {[%clk 0:00:19.7]} 38. f4 {[%clk 0:00:02.5]} 38... f6
{[%clk 0:00:20.4]} 39. Kf3 {[%clk 0:00:03.2]} 39... h6 {[%clk 0:00:20.8]} 40. h4
{[%clk 0:00:03.9]} 40... Bg1 {[%clk 0:00:20.9]} 41. Kg4 {[%clk 0:00:04]} 41...
Kf7 {[%clk 0:00:20.1]} 42. h5 {[%clk 0:00:04.1]} 42... g5 {[%clk 0:00:19.6]} 43.
Kf5 {[%clk 0:00:04.5]} 43... gxf4 {[%clk 0:00:19.7]} 44. gxf4 {[%clk 0:00:04.7]}
44... Bh2 {[%clk 0:00:20.3]} 45. Bc4+ {[%clk 0:00:05.4]} 45... Kg7 {[%clk
0:00:20.9]} 46. e5 {[%clk 0:00:05.6]} 46... fxe5 {[%clk 0:00:21.4]} 47. fxe5
{[%clk 0:00:06.5]} 47... Kf8 {[%clk 0:00:21.6]} 48. Kf6 {[%clk 0:00:06.7]} 48...
Bg3 {[%clk 0:00:19.8]} 49. b4 {[%clk 0:00:06.9]} 49... Be1 {[%clk 0:00:19.6]}
50. b5 {[%clk 0:00:07.4]} 50... Bh4+ {[%clk 0:00:19.7]} 51. Kg6 {[%clk
0:00:07.6]} 51... Bg5 {[%clk 0:00:20.1]} 52. Kf5 {[%clk 0:00:08.3]} 52... Ke7
{[%clk 0:00:20.9]} 53. Ke4 {[%clk 0:00:09.1]} 53... Bd2 {[%clk 0:00:21.2]} 54.
Kd5 {[%clk 0:00:09.6]} 54... Ba5 {[%clk 0:00:21.8]} 55. e6 {[%clk 0:00:10.2]}
55... Bb6 {[%clk 0:00:22.7]} 56. Ke5 {[%clk 0:00:10.8]} 56... Be3 {[%clk
0:00:23.1]} 57. Kf5 {[%clk 0:00:11.5]} 57... Bb6 {[%clk 0:00:24]} 58. Bd5 {[%clk
0:00:12.1]} 58... Be3 {[%clk 0:00:24.6]} 59. Bc6 {[%clk 0:00:13]} 59... Bb6
{[%clk 0:00:25.2]} 60. Kg6 {[%clk 0:00:13.8]} 60... Be3 {[%clk 0:00:25.6]} 61.
Kg7 {[%clk 0:00:14.5]} 61... Bg5 {[%clk 0:00:26]} 62. Bd7 {[%clk 0:00:14.9]}
62... Be3 {[%clk 0:00:26.5]} 63. Kg6 {[%clk 0:00:15.7]} 63... Bg5 {[%clk
0:00:27.1]} 64. Kf5 {[%clk 0:00:16.3]} 64... Be3 {[%clk 0:00:27.8]} 65. Ke5
{[%clk 0:00:15.7]} 65... Bb6 {[%clk 0:00:26.9]} 66. Kd5 {[%clk 0:00:16.6]} 66...
Be3 {[%clk 0:00:27.3]} 67. Kc6 {[%clk 0:00:17.2]} 67... Bb6 {[%clk 0:00:27.3]}
68. Kd5 {[%clk 0:00:17.9]} 68... Be3 {[%clk 0:00:27.8]} 69. Ke5 {[%clk
0:00:18.2]} 69... Bb6 {[%clk 0:00:28.5]} 70. Ke4 {[%clk 0:00:18.9]} 70... Bf2
{[%clk 0:00:28.7]} 71. Kf4 {[%clk 0:00:19.2]} 71... Bb6 {[%clk 0:00:29.2]} 72.
Kf5 {[%clk 0:00:19.3]} 72... Be3 {[%clk 0:00:29.6]} 73. Kg6 {[%clk 0:00:20.1]}
73... Bg5 {[%clk 0:00:29.9]} 74. Kf5 {[%clk 0:00:20.8]} 74... Be3 {[%clk
0:00:30.4]} 1/2-1/2

[Event "Early-Titled-Tuesday-Blitz-September-05-2023"]
[Site "Chess.com"]
[Date "2023.09.05"]
[Round "2"]
[White "aranibos"]
[Black "Lady_Nika"]
[Result "0-1"]
[WhiteElo "2263"]
[BlackElo "2486"]
[TimeControl "180+1"]
[EndTime "8:18:11 PDT"]
[Termination "Lady_Nika won by resignation"]

1. d4 {[%clk 0:03:00.9]} 1... d5 {[%clk 0:02:59.7]} 2. Nf3 {[%clk 0:03:01.1]}
2... e6 {[%clk 0:02:59.1]} 3. Bf4 {[%clk 0:03:01]} 3... Nf6 {[%clk 0:02:59.1]}
4. e3 {[%clk 0:03:00.8]} 4... Bd6 {[%clk 0:02:59]} 5. Bg3 {[%clk 0:03:00.8]}
5... O-O {[%clk 0:02:59]} 6. Bd3 {[%clk 0:03:00.8]} 6... c5 {[%clk 0:02:58.9]}
7. c3 {[%clk 0:02:59]} 7... Nc6 {[%clk 0:02:59.1]} 8. Nbd2 {[%clk 0:02:58.2]}
8... b6 {[%clk 0:02:59]} 9. Ne5 {[%clk 0:02:54.9]} 9... Ne7 {[%clk 0:02:58.3]}
10. f4 {[%clk 0:02:50.8]} 10... Bb7 {[%clk 0:02:53.9]} 11. Qf3 {[%clk
0:02:38.5]} 11... Nf5 {[%clk 0:02:48.8]} 12. Bf2 {[%clk 0:02:34.2]} 12... Nd7
{[%clk 0:02:44.4]} 13. g4 {[%clk 0:02:27.9]} 13... Nh4 {[%clk 0:02:31.3]} 14.
Bxh4 {[%clk 0:02:22.4]} 14... Qxh4+ {[%clk 0:02:31.1]} 15. Qg3 {[%clk
0:02:22.8]} 15... Qe7 {[%clk 0:02:26.6]} 16. Nxd7 {[%clk 0:02:17.9]} 16... Qxd7
{[%clk 0:02:26.3]} 17. Qh4 {[%clk 0:02:17.5]} 17... f5 {[%clk 0:02:24.3]} 18.
Nf3 {[%clk 0:01:57.7]} 18... cxd4 {[%clk 0:02:21.6]} 19. cxd4 {[%clk 0:01:58.1]}
19... Bb4+ {[%clk 0:02:20.8]} 20. Kf2 {[%clk 0:01:55.7]} 20... Be7 {[%clk
0:02:20.8]} 21. Qg3 {[%clk 0:01:54.7]} 21... Rac8 {[%clk 0:02:14.9]} 22. Ne5
{[%clk 0:01:51.2]} 22... Qa4 {[%clk 0:02:14.2]} 23. b3 {[%clk 0:01:49.1]} 23...
Qa3 {[%clk 0:02:10.3]} 24. gxf5 {[%clk 0:01:49.5]} 24... Qb2+ {[%clk 0:02:07.1]}
25. Kf3 {[%clk 0:01:46.8]} 25... exf5 {[%clk 0:02:06.7]} 26. Rag1 {[%clk
0:01:37.9]} 26... Bf6 {[%clk 0:02:05.8]} 27. Rg2 {[%clk 0:01:38.5]} 27... Qc3
{[%clk 0:01:57.8]} 28. Bxf5 {[%clk 0:01:31.2]} 28... Bxe5 {[%clk 0:01:52]} 29.
Bxc8 {[%clk 0:01:26.1]} 29... Rxc8 {[%clk 0:01:21.6]} 30. fxe5 {[%clk
0:01:23.7]} 30... Rf8+ {[%clk 0:01:18.6]} 31. Kg4 {[%clk 0:01:23]} 31... Bc8+
{[%clk 0:01:16.1]} 32. Kh4 {[%clk 0:01:23.6]} 32... Qc7 {[%clk 0:01:15.7]} 33.
Rhg1 {[%clk 0:01:20.1]} 33... g6 {[%clk 0:01:05.7]} 34. Qg5 {[%clk 0:01:14.4]}
34... Rf5 {[%clk 0:01:01.9]} 35. Qh6 {[%clk 0:01:08.5]} 35... Qe7+ {[%clk
0:01:01.5]} 36. Rg5 {[%clk 0:01:06.7]} 36... Rf3 {[%clk 0:00:57.7]} 37. Rg3
{[%clk 0:00:58.4]} 37... Rf2 {[%clk 0:00:57.6]} 38. h3 {[%clk 0:00:51.8]} 38...
Rf5 {[%clk 0:00:54.1]} 39. Qh5 {[%clk 0:00:44.8]} 39... Kh8 {[%clk 0:00:41.1]}
40. Qh6 {[%clk 0:00:42.2]} 40... Be6 {[%clk 0:00:36.6]} 41. a4 {[%clk
0:00:41.8]} 41... Bd7 {[%clk 0:00:30.6]} 42. b4 {[%clk 0:00:39.8]} 42... Bc8
{[%clk 0:00:29.9]} 43. b5 {[%clk 0:00:38.5]} 43... Bd7 {[%clk 0:00:28.4]} 44.
Rg4 {[%clk 0:00:27.8]} 44... Rf3 {[%clk 0:00:21.5]} 45. Rg3 {[%clk 0:00:25.4]}
45... Rf1 {[%clk 0:00:20.7]} 46. e6 {[%clk 0:00:20.6]} 46... Bxe6 {[%clk
0:00:19.6]} 47. a5 {[%clk 0:00:20.8]} 47... Bd7 {[%clk 0:00:19.6]} 48. axb6
{[%clk 0:00:19]} 48... axb6 {[%clk 0:00:19.3]} 49. Qh5 {[%clk 0:00:16.7]} 49...
gxh5 {[%clk 0:00:17.6]} 50. Kxh5 {[%clk 0:00:15.3]} 50... Be8+ {[%clk
0:00:17.9]} 51. Kh4 {[%clk 0:00:14.9]} 51... Bg6 {[%clk 0:00:17.9]} 52. Rg4
{[%clk 0:00:14.3]} 52... Re1 {[%clk 0:00:17.6]} 53. Rg3 {[%clk 0:00:11.4]} 53...
h6 {[%clk 0:00:17.1]} 0-1